[Event "MČR juniorů a juniorek v rapid šachu 2023"]
[Site "Czech Republic"]
[Date "2023.09.24"]
[Round "7.11"]
[White "Simunek, Jakub Simon"]
[Black "Novotny, Dominik"]
[Result "1-0"]
[TimeControl "20 min + 5 sec per move"]
[WhiteFideId "23709464"]
[BlackFideId "23755601"]
[WhiteElo "1843"]
[BlackElo "1707"]

1. e4 {[%clk 00:20:07]} {[%emt 00:00:02]} c6 {[%clk 00:20:09]} {[%emt
00:00:02]} 2. d4 {[%clk 00:20:10]} {[%emt 00:00:02]} d5 {[%clk 00:20:12]}
{[%emt 00:00:01]} 3. exd5 {[%clk 00:20:14]} {[%emt 00:00:02]} cxd5 {[%clk
00:20:16]} 4. Bd3 {[%clk 00:20:18]} Nc6 {[%clk 00:20:19]} {[%emt 00:00:02]} 5.
c3 {[%clk 00:20:22]} Nf6 {[%clk 00:20:16]} {[%emt 00:00:08]} 6. h3 {[%clk
00:20:23]} {[%emt 00:00:03]} e5 {[%clk 00:20:17]} {[%emt 00:00:04]} 7. dxe5
{[%clk 00:20:27]} {[%emt 00:00:02]} Nxe5 {[%clk 00:20:20]} {[%emt 00:00:02]} 8.
Nf3 {[%clk 00:20:30]} {[%emt 00:00:02]} Nxd3+ {[%clk 00:19:55]} {[%emt
00:00:29]} 9. Qxd3 {[%clk 00:20:33]} {[%emt 00:00:03]} Be7 {[%clk 00:19:37]}
{[%emt 00:00:22]} 10. O-O {[%clk 00:20:34]} {[%emt 00:00:05]} O-O {[%clk
00:19:39]} {[%emt 00:00:03]} 11. Be3 {[%clk 00:20:23]} {[%emt 00:00:16]} Re8
{[%clk 00:18:39]} {[%emt 00:01:05]} 12. Nbd2 {[%clk 00:20:21]} {[%emt
00:00:07]} b6 {[%clk 00:17:39]} {[%emt 00:01:04]} 13. Bd4 {[%clk 00:19:03]}
{[%emt 00:01:24]} h6 {[%clk 00:16:03]} {[%emt 00:01:41]} 14. Rfe1 {[%clk
00:18:48]} {[%emt 00:00:19]} Bb7 {[%clk 00:15:35]} {[%emt 00:00:34]} 15. Ne5
{[%clk 00:14:56]} {[%emt 00:03:57]} Rc8 {[%clk 00:12:50]} {[%emt 00:02:50]} 16.
Ndf3 {[%clk 00:11:56]} {[%emt 00:03:05]} Ne4 {[%clk 00:12:09]} {[%emt
00:00:46]} 17. Qe3 {[%clk 00:10:19]} {[%emt 00:01:42]} Bc5 {[%clk 00:10:02]}
{[%emt 00:02:12]} 18. Qf4 {[%clk 00:08:57]} {[%emt 00:01:27]} Qf6 {[%clk
00:05:59]} {[%emt 00:04:08]} 19. Qxf6 {[%clk 00:07:19]} {[%emt 00:01:43]} Nxf6
{[%clk 00:06:01]} {[%emt 00:00:03]} 20. Rac1 {[%clk 00:06:59]} {[%emt
00:00:26]} Ne4 {[%clk 00:04:27]} {[%emt 00:01:38]} 21. Nd3 {[%clk 00:04:17]}
{[%emt 00:02:48]} Kf8 {[%clk 00:03:00]} {[%emt 00:01:32]} 22. g3 {[%clk
00:03:39]} {[%emt 00:00:43]} Rc7 {[%clk 00:01:21]} {[%emt 00:01:43]} 23. Kg2
{[%clk 00:03:11]} {[%emt 00:00:33]} Bxd4 {[%clk 00:00:44]} {[%emt 00:00:43]} 24.
Nxd4 {[%clk 00:02:23]} {[%emt 00:00:53]} Nc5 {[%clk 00:00:30]} {[%emt
00:00:19]} 25. Nf4 {[%emt 00:01:46]} g5 {[%clk 00:00:22]} {[%emt 00:00:12]} 26.
Rxe8+ {[%clk 00:00:47]} {[%emt 00:00:02]} Kxe8 {[%clk 00:00:25]} {[%emt
00:00:01]} 27. Nfe2 {[%clk 00:00:18]} {[%emt 00:00:34]} Nd3 {[%clk 00:00:27]}
{[%emt 00:00:03]} 28. Rc2 {[%clk 00:00:19]} {[%emt 00:00:03]} Ne1+ {[%clk
00:00:31]} 29. Kf1 {[%clk 00:00:18]} {[%emt 00:00:07]} Nxc2 {[%clk 00:00:35]}
{[%emt 00:00:01]} 30. Nxc2 {[%clk 00:00:22]} Ba6 {[%clk 00:00:39]} 31. Ncd4
{[%clk 00:00:22]} {[%emt 00:00:04]} Re7 {[%clk 00:00:36]} {[%emt 00:00:08]} 32.
Ke1 {[%clk 00:00:24]} {[%emt 00:00:03]} Bxe2 {[%clk 00:00:39]} {[%emt
00:00:03]} 33. Nxe2 {[%clk 00:00:28]} f5 {[%clk 00:00:42]} {[%emt 00:00:02]} 34.
Kd2 {[%clk 00:00:29]} {[%emt 00:00:04]} Kd7 {[%clk 00:00:46]} {[%emt 00:00:01]}
35. Nd4 {[%emt 00:00:08]} Rf7 {[%clk 00:00:45]} {[%emt 00:00:04]} 36. Kd3
{[%clk 00:00:21]} {[%emt 00:00:11]} f4 {[%clk 00:00:47]} {[%emt 00:00:02]} 37.
g4 {[%emt 00:00:02]} h5 {[%clk 00:00:48]} {[%emt 00:00:03]} 38. Nb5 {[%clk
00:00:16]} {[%emt 00:00:15]} hxg4 39. hxg4 a6 {[%clk 00:00:34]} {[%emt
00:00:09]} 40. Nd4 {[%clk 00:00:23]} {[%emt 00:00:02]} Rh7 {[%clk 00:00:28]}
{[%emt 00:00:12]} 41. b3 {[%clk 00:00:15]} {[%emt 00:00:13]} b5 {[%clk
00:00:29]} {[%emt 00:00:03]} 42. a3 {[%clk 00:00:18]} {[%emt 00:00:02]} Rh3+
{[%clk 00:00:32]} {[%emt 00:00:02]} 43. f3 {[%clk 00:00:22]} {[%emt 00:00:02]}
Rh2 {[%clk 00:00:27]} {[%emt 00:00:09]} 44. a4 {[%clk 00:00:14]} {[%emt
00:00:14]} bxa4 {[%clk 00:00:24]} {[%emt 00:00:08]} 45. bxa4 {[%clk 00:00:18]}
Ra2 {[%clk 00:00:28]} 46. Nb3 {[%clk 00:00:22]} {[%emt 00:00:02]} Kd6 {[%clk
00:00:25]} {[%emt 00:00:08]} 47. a5 {[%clk 00:00:24]} {[%emt 00:00:04]} Ra3
{[%clk 00:00:27]} {[%emt 00:00:03]} 48. Nd4 {[%clk 00:00:15]} {[%emt 00:00:13]}
Rxa5 {[%clk 00:00:24]} {[%emt 00:00:08]} 49. Nf5+ {[%clk 00:00:18]} {[%emt
00:00:02]} Kc5 {[%clk 00:00:26]} {[%emt 00:00:03]} 50. Nh6 {[%clk 00:00:21]}
{[%emt 00:00:02]} Ra1 {[%clk 00:00:22]} {[%emt 00:00:09]} 51. Nf7 {[%clk
00:00:24]} {[%emt 00:00:01]} Rf1 {[%clk 00:00:15]} {[%emt 00:00:13]} 52. Nxg5
{[%emt 00:00:03]} Rxf3+ {[%clk 00:00:17]} {[%emt 00:01:10]} 53. Nxf3 {[%clk
00:00:32]} a5 {[%clk 00:00:20]} {[%emt 00:00:02]} 54. Kc2 {[%clk 00:00:31]}
{[%emt 00:00:05]} a4 {[%clk 00:00:21]} {[%emt 00:00:04]} 55. g5 {[%clk
00:00:35]} {[%emt 00:00:01]} Kd6 {[%clk 00:00:21]} {[%emt 00:00:05]} 56. Kb2
{[%clk 00:00:37]} {[%emt 00:00:03]} Ke6 {[%clk 00:00:25]} 57. Ka3 {[%clk
00:00:41]} {[%emt 00:00:01]} Kf5 {[%clk 00:00:26]} {[%emt 00:00:04]} 58. Kxa4
{[%clk 00:00:44]} {[%emt 00:00:02]} Ke4 {[%clk 00:00:28]} {[%emt 00:00:03]} 59.
g6 {[%clk 00:00:48]} Kxf3 {[%clk 00:00:32]} {[%emt 00:00:01]} 60. g7 {[%clk
00:00:52]} Ke2 {[%clk 00:00:34]} {[%emt 00:00:03]} 61. g8=Q {[%clk 00:00:56]}
f3 {[%clk 00:00:39]} 62. Qxd5 {[%clk 00:00:57]} {[%emt 00:00:04]} f2 {[%clk
00:00:42]} 63. Qc4+ {[%clk 00:01:00]} {[%emt 00:00:02]} Ke1 {[%clk 00:00:51]}
{[%emt 00:00:01]} 64. Qf4 {[%clk 00:01:08]} {[%emt 00:00:03]} f1=Q {[%clk
00:00:54]} {[%emt 00:00:02]} 65. Qxf1+ {[%clk 00:01:12]} {[%emt 00:00:01]} Kxf1
{[%clk 00:00:57]} {[%emt 00:00:02]} 66. c4 {[%clk 00:01:16]} 1-0

[Event "MČR juniorů a juniorek v rapid šachu 2023"]
[Site "Czech Republic"]
[Date "2023.09.24"]
[Round "7.12"]
[White "Svacina, Tobias"]
[Black "Martinkovic, Adam"]
[Result "1-0"]
[TimeControl "20 min + 5 sec per move"]
[WhiteFideId "385859"]
[BlackFideId "23728019"]
[WhiteElo "1782"]
[BlackElo "1807"]

1. e4 {[%clk 00:20:07]} {[%emt 00:00:02]} c6 {[%clk 00:20:08]} 2. d3 {[%clk
00:20:04]} {[%emt 00:00:11]} d5 {[%clk 00:20:08]} {[%emt 00:00:04]} 3. Nd2
{[%clk 00:20:08]} dxe4 {[%clk 00:19:20]} {[%emt 00:00:53]} 4. Nxe4 {[%clk
00:20:11]} {[%emt 00:00:02]} Bf5 {[%clk 00:19:00]} {[%emt 00:00:25]} 5. Qf3
{[%clk 00:18:53]} {[%emt 00:01:23]} e6 {[%clk 00:17:47]} {[%emt 00:01:18]} 6.
Bf4 {[%clk 00:17:31]} {[%emt 00:01:27]} Nf6 {[%clk 00:16:24]} {[%emt 00:01:27]}
7. h3 {[%clk 00:17:08]} {[%emt 00:00:28]} Nd5 {[%clk 00:14:52]} {[%emt
00:01:37]} 8. Bh2 {[%clk 00:14:00]} {[%emt 00:03:14]} Be7 {[%clk 00:14:36]}
{[%emt 00:00:20]} 9. a3 {[%clk 00:13:00]} {[%emt 00:01:06]} Na6 {[%clk
00:13:53]} {[%emt 00:00:48]} 10. Ne2 {[%clk 00:12:31]} {[%emt 00:00:34]} Nac7
{[%clk 00:12:03]} {[%emt 00:01:55]} 11. Qg3 {[%clk 00:09:31]} {[%emt 00:03:05]}
Rc8 {[%clk 00:07:09]} {[%emt 00:04:58]} 12. Qxg7 {[%clk 00:08:32]} {[%emt
00:01:04]} Rf8 {[%clk 00:06:30]} {[%emt 00:00:45]} 13. Be5 {[%clk 00:06:11]}
{[%emt 00:02:26]} Bxe4 {[%clk 00:03:19]} {[%emt 00:03:16]} 14. dxe4 {[%clk
00:06:02]} {[%emt 00:00:14]} Nf6 {[%clk 00:03:12]} {[%emt 00:00:11]} 15. Rd1
{[%clk 00:05:28]} {[%emt 00:00:39]} Ncd5 {[%clk 00:02:21]} {[%emt 00:00:57]} 16.
exd5 {[%clk 00:04:47]} {[%emt 00:00:46]} cxd5 {[%clk 00:02:20]} {[%emt
00:00:05]} 17. Nc3 {[%emt 00:02:59]} Rg8 {[%clk 00:02:00]} {[%emt 00:00:23]} 18.
Bb5+ {[%clk 00:01:56]} {[%emt 00:00:04]} Rc6 {[%clk 00:01:53]} {[%emt
00:00:13]} 19. Qh6 {[%clk 00:01:33]} {[%emt 00:00:27]} Rg6 {[%clk 00:01:29]}
{[%emt 00:00:29]} 20. Qe3 {[%clk 00:01:24]} {[%emt 00:00:14]} Bd6 {[%clk
00:00:58]} {[%emt 00:00:36]} 21. Bxd6 {[%clk 00:00:47]} {[%emt 00:00:42]} Qxd6
{[%clk 00:01:00]} {[%emt 00:00:03]} 22. g3 {[%clk 00:00:44]} {[%emt 00:00:09]}
Nd7 {[%clk 00:00:42]} {[%emt 00:00:22]} 23. Ne4 {[%clk 00:00:40]} {[%emt
00:00:10]} Qc7 {[%clk 00:00:27]} {[%emt 00:00:20]} 24. Bxc6 {[%clk 00:00:43]}
{[%emt 00:00:03]} bxc6 {[%clk 00:00:28]} {[%emt 00:00:03]} 25. Nc5 {[%clk
00:00:46]} {[%emt 00:00:01]} Nf6 {[%clk 00:00:12]} {[%emt 00:00:21]} 26. O-O
{[%clk 00:00:24]} {[%emt 00:00:28]} Kf8 {[%clk 00:00:10]} {[%emt 00:00:07]} 27.
Kh2 {[%clk 00:00:20]} {[%emt 00:00:09]} Kg8 {[%clk 00:00:13]} {[%emt 00:00:02]}
28. Nd3 {[%clk 00:00:20]} {[%emt 00:00:05]} Ne4 {[%clk 00:00:12]} {[%emt
00:00:06]} 29. Qf4 {[%clk 00:00:22]} {[%emt 00:00:03]} Qe7 {[%clk 00:00:08]}
{[%emt 00:00:09]} 30. Ne5 {[%clk 00:00:22]} {[%emt 00:00:05]} Rg7 {[%clk
00:00:08]} {[%emt 00:00:05]} 31. Nxc6 {[%clk 00:00:20]} {[%emt 00:00:07]} Qb7
{[%clk 00:00:10]} {[%emt 00:00:03]} 32. Qb8+ {[%clk 00:00:23]} {[%emt
00:00:02]} Qxb8 {[%clk 00:00:13]} {[%emt 00:00:02]} 33. Nxb8 {[%clk 00:00:28]}
f6 {[%clk 00:00:14]} {[%emt 00:00:03]} 34. Nc6 {[%clk 00:00:31]} {[%emt
00:00:02]} Rb7 {[%clk 00:00:16]} {[%emt 00:00:03]} 35. b3 {[%clk 00:00:33]}
{[%emt 00:00:02]} Kf7 {[%clk 00:00:18]} {[%emt 00:00:03]} 1-0

[Event "MČR juniorů a juniorek v rapid šachu 2023"]
[Site "Czech Republic"]
[Date "2023.09.24"]
[Round "7.13"]
[White "Husa, Daniel"]
[Black "Garabik, Marek"]
[Result "0-1"]
[TimeControl "20 min + 5 sec per move"]
[WhiteFideId "393487"]
[BlackFideId "23717742"]
[WhiteElo "1760"]
[BlackElo "1787"]

1. d4 {[%clk 00:19:53]} {[%emt 00:00:16]} d5 {[%clk 00:20:09]} {[%emt
00:00:02]} 2. c4 {[%clk 00:19:57]} {[%emt 00:00:02]} e6 {[%clk 00:20:13]} 3.
Nf3 {[%clk 00:20:00]} {[%emt 00:00:02]} Nf6 {[%clk 00:20:16]} {[%emt 00:00:01]}
4. g3 {[%clk 00:20:03]} {[%emt 00:00:03]} Bb4+ {[%clk 00:20:13]} {[%emt
00:00:08]} 5. Bd2 {[%clk 00:19:57]} {[%emt 00:00:10]} Be7 {[%clk 00:20:00]}
{[%emt 00:00:18]} 6. Bg2 {[%clk 00:19:52]} {[%emt 00:00:10]} O-O {[%clk
00:19:49]} {[%emt 00:00:16]} 7. O-O {[%clk 00:19:47]} {[%emt 00:00:10]} Nbd7
{[%clk 00:18:55]} {[%emt 00:00:59]} 8. Qc2 {[%clk 00:19:02]} {[%emt 00:00:49]}
Ne4 {[%clk 00:18:05]} {[%emt 00:00:54]} 9. Bf4 {[%clk 00:18:19]} {[%emt
00:00:49]} c6 {[%clk 00:17:13]} {[%emt 00:00:58]} 10. Nbd2 {[%clk 00:17:02]}
{[%emt 00:01:21]} f5 {[%clk 00:17:16]} {[%emt 00:00:02]} 11. Ne5 {[%clk
00:15:53]} {[%emt 00:01:15]} g5 {[%clk 00:16:16]} {[%emt 00:01:05]} 12. Nxd7
{[%clk 00:15:40]} {[%emt 00:00:16]} Qxd7 {[%clk 00:15:19]} {[%emt 00:01:03]} 13.
Be5 {[%clk 00:14:56]} {[%emt 00:00:49]} b6 {[%clk 00:13:36]} {[%emt 00:01:48]}
14. Nxe4 {[%clk 00:11:42]} {[%emt 00:03:19]} fxe4 {[%clk 00:13:22]} {[%emt
00:00:19]} 15. f3 {[%clk 00:11:33]} {[%emt 00:00:15]} exf3 {[%clk 00:13:14]}
{[%emt 00:00:12]} 16. Rxf3 {[%clk 00:10:38]} {[%emt 00:01:00]} Rxf3 {[%clk
00:12:02]} {[%emt 00:01:17]} 17. Bxf3 {[%clk 00:10:17]} {[%emt 00:00:26]} Ba6
{[%clk 00:11:35]} {[%emt 00:00:32]} 18. b3 {[%clk 00:09:28]} {[%emt 00:00:54]}
Rf8 {[%clk 00:11:24]} {[%emt 00:00:16]} 19. Rc1 {[%clk 00:08:35]} {[%emt
00:00:58]} Bb7 {[%clk 00:08:48]} {[%emt 00:02:41]} 20. Kg2 {[%clk 00:07:30]}
{[%emt 00:01:10]} Bd6 {[%clk 00:07:52]} {[%emt 00:01:01]} 21. Bxd6 {[%clk
00:07:10]} {[%emt 00:00:25]} Qxd6 {[%clk 00:07:55]} {[%emt 00:00:03]} 22. e4
{[%clk 00:06:40]} {[%emt 00:00:35]} dxc4 {[%clk 00:05:08]} {[%emt 00:02:51]} 23.
Qxc4 {[%clk 00:06:25]} {[%emt 00:00:20]} c5 {[%clk 00:05:12]} {[%emt 00:00:01]}
24. Rd1 {[%clk 00:05:37]} {[%emt 00:00:53]} g4 {[%clk 00:03:00]} {[%emt
00:02:18]} 25. Bxg4 {[%clk 00:05:05]} {[%emt 00:00:37]} Bxe4+ {[%clk 00:03:03]}
{[%emt 00:00:01]} 26. Kg1 {[%clk 00:04:18]} {[%emt 00:00:52]} Bd5 {[%clk
00:03:07]} {[%emt 00:00:01]} 27. dxc5 {[%clk 00:03:37]} {[%emt 00:00:47]} Qxc5+
{[%clk 00:01:27]} {[%emt 00:01:45]} 28. Qxc5 {[%clk 00:03:37]} {[%emt
00:00:05]} bxc5 {[%clk 00:01:31]} 29. Rc1 {[%clk 00:03:21]} {[%emt 00:00:21]}
Rc8 {[%clk 00:01:21]} {[%emt 00:00:14]} 30. Kf2 {[%clk 00:03:01]} {[%emt
00:00:25]} Kf7 {[%clk 00:01:19]} {[%emt 00:00:07]} 31. Ke3 {[%clk 00:02:45]}
{[%emt 00:00:20]} Ke7 {[%clk 00:01:16]} {[%emt 00:00:08]} 32. Rd1 {[%clk
00:01:27]} {[%emt 00:01:24]} Rf8 {[%clk 00:01:11]} {[%emt 00:00:10]} 33. Rc1
{[%clk 00:01:18]} {[%emt 00:00:14]} Kd6 {[%clk 00:01:14]} {[%emt 00:00:02]} 34.
Rc2 {[%clk 00:01:08]} {[%emt 00:00:15]} Rf1 {[%clk 00:01:13]} {[%emt 00:00:06]}
35. Rf2 {[%clk 00:00:57]} {[%emt 00:00:17]} Re1+ {[%clk 00:00:58]} {[%emt
00:00:20]} 36. Kd3 {[%clk 00:00:37]} {[%emt 00:00:25]} Be4+ {[%clk 00:00:47]}
{[%emt 00:00:17]} 37. Kc3 {[%clk 00:00:31]} {[%emt 00:00:10]} Re3+ {[%clk
00:00:38]} {[%emt 00:00:14]} 38. Kb2 {[%clk 00:00:27]} {[%emt 00:00:09]} Kd5
{[%clk 00:00:39]} {[%emt 00:00:04]} 39. Rf7 {[%clk 00:00:19]} {[%emt 00:00:13]}
Rd3 {[%clk 00:00:17]} {[%emt 00:00:28]} 40. Rd7+ {[%clk 00:00:15]} {[%emt
00:00:08]} Ke5 {[%clk 00:00:21]} 41. Rxd3 {[%clk 00:00:15]} {[%emt 00:00:05]}
Bxd3 {[%clk 00:00:25]} 42. Kc3 {[%clk 00:00:19]} {[%emt 00:00:01]} Be4 {[%clk
00:00:22]} {[%emt 00:00:08]} 43. Kc4 {[%clk 00:00:13]} {[%emt 00:00:11]} Kd6
{[%clk 00:00:25]} {[%emt 00:00:02]} 44. Kb5 {[%clk 00:00:14]} {[%emt 00:00:04]}
Bd3+ {[%clk 00:00:27]} {[%emt 00:00:03]} 45. Ka4 {[%clk 00:00:15]} {[%emt
00:00:05]} e5 {[%clk 00:00:27]} {[%emt 00:00:05]} 46. b4 {[%clk 00:00:14]}
{[%emt 00:00:07]} e4 {[%clk 00:00:25]} {[%emt 00:00:07]} 47. bxc5+ {[%clk
00:00:11]} {[%emt 00:00:07]} Kxc5 {[%clk 00:00:29]} {[%emt 00:00:01]} 48. Kb3
{[%clk 00:00:10]} {[%emt 00:00:06]} Kd4 {[%clk 00:00:28]} {[%emt 00:00:06]} 49.
Bf5 {[%clk 00:00:11]} {[%emt 00:00:04]} e3 {[%clk 00:00:26]} {[%emt 00:00:07]}
50. Bg4 {[%clk 00:00:10]} {[%emt 00:00:06]} e2 {[%clk 00:00:30]} {[%emt
00:00:02]} 51. Bxe2 Bxe2 {[%emt 00:00:01]} 0-1

[Event "MČR juniorů a juniorek v rapid šachu 2023"]
[Site "Czech Republic"]
[Date "2023.09.24"]
[Round "7.14"]
[White "Zadrapova, Amalie"]
[Black "Tegda, Vojtech"]
[Result "1-0"]
[TimeControl "20 min + 5 sec per move"]
[WhiteFideId "23710276"]
[BlackFideId "23723424"]
[WhiteElo "1590"]
[BlackElo "1959"]

1. e4 {[%clk 00:20:08]} {[%emt 00:00:02]} e5 {[%clk 00:20:09]} {[%emt
00:00:01]} 2. Nf3 {[%clk 00:20:11]} {[%emt 00:00:01]} Nc6 {[%clk 00:20:09]}
{[%emt 00:00:05]} 3. Bb5 {[%clk 00:20:15]} {[%emt 00:00:02]} g6 {[%clk
00:20:06]} {[%emt 00:00:08]} 4. O-O {[%clk 00:20:08]} {[%emt 00:00:11]} Bg7
{[%clk 00:20:09]} {[%emt 00:00:02]} 5. d3 {[%clk 00:19:45]} {[%emt 00:00:28]}
Nge7 {[%clk 00:20:06]} {[%emt 00:00:08]} 6. c3 {[%clk 00:19:18]} {[%emt
00:00:33]} O-O {[%clk 00:18:33]} {[%emt 00:01:37]} 7. Re1 {[%clk 00:18:26]}
{[%emt 00:00:58]} a6 {[%clk 00:16:35]} {[%emt 00:02:04]} 8. Ba4 {[%clk
00:18:21]} {[%emt 00:00:09]} d5 {[%clk 00:15:47]} {[%emt 00:00:52]} 9. Nbd2
{[%emt 00:02:37]} b5 {[%clk 00:12:42]} {[%emt 00:02:44]} 10. Bc2 {[%clk
00:15:42]} {[%emt 00:00:39]} Bb7 {[%clk 00:12:36]} {[%emt 00:00:11]} 11. Qe2
{[%clk 00:14:53]} {[%emt 00:00:54]} Qd6 {[%clk 00:08:37]} {[%emt 00:04:03]} 12.
Nf1 {[%clk 00:12:05]} {[%emt 00:02:54]} Rae8 {[%clk 00:06:32]} {[%emt
00:02:10]} 13. Bg5 {[%clk 00:09:46]} {[%emt 00:02:23]} f5 {[%clk 00:04:59]}
{[%emt 00:01:39]} 14. exf5 {[%clk 00:08:56]} {[%emt 00:00:55]} gxf5 {[%clk
00:02:52]} {[%emt 00:02:12]} 15. a4 {[%clk 00:05:33]} {[%emt 00:03:28]} Ng6
{[%clk 00:01:53]} {[%emt 00:01:04]} 16. Qd2 {[%clk 00:03:48]} {[%emt 00:01:49]}
e4 {[%clk 00:01:12]} {[%emt 00:00:46]} 17. dxe4 {[%clk 00:03:15]} {[%emt
00:00:38]} fxe4 {[%clk 00:01:11]} {[%emt 00:00:06]} 18. Nd4 {[%clk 00:02:28]}
{[%emt 00:00:52]} Nge5 {[%clk 00:00:24]} {[%emt 00:00:53]} 19. Bh4 {[%clk
00:01:27]} {[%emt 00:01:06]} Nc4 {[%clk 00:00:22]} {[%emt 00:00:07]} 20. Qc1
{[%clk 00:01:11]} {[%emt 00:00:21]} Nxd4 {[%clk 00:00:18]} {[%emt 00:00:09]} 21.
cxd4 {[%clk 00:01:13]} {[%emt 00:00:03]} Bxd4 {[%clk 00:00:19]} {[%emt
00:00:04]} 22. Rb1 {[%clk 00:00:38]} {[%emt 00:00:40]} Qg6 {[%clk 00:00:13]}
{[%emt 00:00:10]} 23. b3 {[%emt 00:00:13]} Nd6 {[%clk 00:00:13]} {[%emt
00:00:03]} 24. Ne3 {[%clk 00:00:28]} {[%emt 00:00:09]} Nf5 {[%clk 00:00:12]}
{[%emt 00:00:06]} 25. Nxf5 {[%clk 00:00:30]} {[%emt 00:00:03]} Qxf5 {[%clk
00:00:15]} {[%emt 00:00:03]} 26. Rf1 {[%clk 00:00:25]} {[%emt 00:00:10]} Bg7
{[%clk 00:00:12]} {[%emt 00:00:08]} 27. axb5 {[%clk 00:00:28]} {[%emt
00:00:02]} axb5 {[%clk 00:00:15]} {[%emt 00:00:02]} 28. b4 {[%clk 00:00:21]}
{[%emt 00:00:12]} Qf4 {[%clk 00:00:14]} {[%emt 00:00:07]} 29. Qxf4 {[%clk
00:00:21]} {[%emt 00:00:04]} Rxf4 {[%clk 00:00:17]} {[%emt 00:00:02]} 30. Bg3
{[%clk 00:00:25]} {[%emt 00:00:01]} Rf7 {[%clk 00:00:20]} {[%emt 00:00:03]} 31.
Bb3 {[%clk 00:00:28]} {[%emt 00:00:02]} c6 {[%clk 00:00:22]} {[%emt 00:00:03]}
32. Rbc1 {[%clk 00:00:15]} {[%emt 00:00:18]} Rd7 {[%clk 00:00:25]} {[%emt
00:00:02]} 33. Rfe1 {[%clk 00:00:16]} {[%emt 00:00:04]} Kh8 {[%clk 00:00:27]}
{[%emt 00:00:32]} 34. Bc2 {[%clk 00:01:04]} {[%emt 00:00:16]} Bc3 {[%clk
00:00:28]} {[%emt 00:00:04]} 35. Re2 {[%clk 00:01:03]} {[%emt 00:00:05]} Bxb4
{[%clk 00:00:31]} {[%emt 00:00:02]} 36. f3 {[%clk 00:01:01]} {[%emt 00:00:07]}
Bc5+ {[%clk 00:00:35]} 37. Kf1 {[%clk 00:01:02]} {[%emt 00:00:04]} e3 {[%clk
00:00:38]} {[%emt 00:00:02]} 38. Bxh7 {[%clk 00:01:00]} {[%emt 00:00:08]} Bb6
{[%clk 00:00:36]} {[%emt 00:00:07]} 39. Bf5 {[%clk 00:00:59]} {[%emt 00:00:06]}
Rdd8 {[%clk 00:00:33]} {[%emt 00:00:08]} 40. Bh4 {[%clk 00:00:57]} {[%emt
00:00:07]} Ra8 {[%clk 00:00:35]} {[%emt 00:00:02]} 41. Bd7 {[%clk 00:00:58]}
{[%emt 00:00:05]} Rg8 {[%clk 00:00:27]} {[%emt 00:00:13]} 42. Bxc6 {[%clk
00:00:55]} {[%emt 00:00:07]} Bxc6 {[%clk 00:00:29]} {[%emt 00:00:04]} 43. Rxc6
{[%clk 00:00:59]} {[%emt 00:00:02]} Ra1+ {[%clk 00:00:30]} {[%emt 00:00:03]} 44.
Re1 {[%clk 00:01:01]} {[%emt 00:00:03]} Rxe1+ {[%clk 00:00:32]} {[%emt
00:00:04]} 45. Bxe1 {[%clk 00:01:03]} {[%emt 00:00:02]} Ba7 {[%clk 00:00:30]}
{[%emt 00:00:08]} 46. Bc3+ {[%clk 00:01:06]} {[%emt 00:00:02]} Kh7 {[%clk
00:00:32]} 47. Rc7+ {[%clk 00:01:10]} {[%emt 00:00:03]} Kg6 {[%clk 00:00:35]}
48. Rxa7 {[%clk 00:01:12]} {[%emt 00:00:03]} Rd8 {[%clk 00:00:36]} {[%emt
00:00:04]} 49. Ra6+ {[%clk 00:01:15]} {[%emt 00:00:02]} Kf7 {[%clk 00:00:38]}
{[%emt 00:00:03]} 50. Rf6+ {[%clk 00:01:14]} {[%emt 00:00:06]} Ke7 {[%clk
00:00:42]} 51. Rf4 {[%clk 00:01:17]} {[%emt 00:00:03]} Ke6 {[%clk 00:00:45]}
{[%emt 00:00:02]} 52. Ke2 {[%clk 00:01:19]} {[%emt 00:00:03]} b4 {[%clk
00:00:41]} {[%emt 00:00:10]} 53. Rxb4 {[%clk 00:01:21]} {[%emt 00:00:03]} Rc8
{[%clk 00:00:43]} {[%emt 00:00:03]} 54. Rb3 {[%clk 00:01:16]} {[%emt 00:00:09]}
1-0